bitfinex/quotes_BTCUSD_20220111
["timestamp","ask_amount","ask_price","bid_price","bid_amount"]
[1641861316315,0.069962,41713.0,41710.0,0.001]
[1641861317724,0.059962,41713.0,41710.0,0.001]
[1641861318318,0.01,41713.0,41710.0,0.001]
[1641861319670,0.00125381,41714.0,41710.0,0.001]
[1641861320370,0.01125381,41714.0,41710.0,0.001]
[1641861320573,0.01125381,41714.0,41710.0,0.00185938]
[1641861321172,0.01,41714.0,41710.0,0.00185938]
[1641861321572,0.00129143,41721.0,41710.0,0.00185938]
[1641861321573,0.00129143,41721.0,41710.0,0.001]
[1641861321772,0.1,41726.0,41710.0,0.00185938]
[1641861321773,0.00081461,41723.0,41710.0,0.00185938]
[1641861321973,0.00081461,41723.0,41717.0,0.28357271]
[1641861322473,0.00081461,41723.0,41710.0,0.37202782]
[1641861322672,0.00127215,41721.0,41710.0,0.05685938]
[1641861322923,0.00127364,41717.0,41714.0,0.00085933]
[1641861323324,0.31362998,41715.0,41714.0,0.00085933]
[1641861323523,0.41362998,41715.0,41714.0,0.00085933]
[1641861323723,0.31362998,41715.0,41714.0,0.00085933]
[1641861323922,0.31362998,41715.0,41710.0,0.001]
[1641861323923,0.47359298,41715.0,41710.0,0.001]
[1641861324123,0.32072083,41714.0,41712.0,0.00085935]
[1641861324324,0.42072083,41714.0,41712.0,0.00085935]
[1641861324524,0.00125441,41713.0,41712.0,0.00085935]
[1641861324724,0.00125441,41713.0,41699.0,0.0011]
[1641861324725,0.00121451,41704.0,41699.0,0.0011]
[1641861324927,0.41476587,41704.0,41699.0,0.0011]
[1641861325125,0.82236105,41704.0,41699.0,0.0011]
[1641861325526,0.55,41703.0,41699.0,0.0011]
[1641861325728,0.00128172,41700.0,41699.0,0.0011]
[1641861325926,0.74928172,41700.0,41699.0,0.0011]
[1641861326226,1.41628172,41700.0,41699.0,0.0011]
[1641861326425,1.79396721,41700.0,41699.0,0.0011]
[1641861326875,0.5,41699.0,41683.0,1.1824569]
[1641861327076,0.36152469,41691.0,41683.0,0.86399203]
[1641861327278,0.20748263,41690.0,41680.0,0.0011]
[1641861327675,0.46152469,41691.0,41680.0,0.0011]
[1641861327874,0.36152469,41691.0,41677.0,0.4161]
[1641861328078,0.36152469,41691.0,41686.0,0.34570281]
[1641861328279,0.23965668,41694.0,41688.0,0.336825]
[1641861328480,0.00127497,41694.0,41688.0,0.336825]
[1641861329277,0.00127497,41694.0,41688.0,0.331825]
[1641861329479,0.00127497,41694.0,41688.0,0.391802]
[1641861329679,0.31905002,41695.0,41688.0,0.391802]
[1641861329879,0.31905002,41695.0,41688.0,0.331825]
[1641861330079,0.41905002,41695.0,41677.0,0.4161]
[1641861330325,0.42530935,41695.0,41688.0,0.018]
[1641861330522,0.15464247,41689.0,41688.0,0.018]
[1641861332323,0.15864247,41689.0,41688.0,0.029]
[1641861333526,0.15864247,41689.0,41685.0,0.32594089]
[1641861333723,0.15464247,41689.0,41686.0,0.00081972]
[1641861334372,0.15864247,41689.0,41686.0,0.04481972]
[1641861334773,0.15864247,41689.0,41686.0,0.044]
[1641861335576,0.15464247,41689.0,41685.0,0.00081975]
[1641861335973,0.15464247,41689.0,41683.0,0.30507658]
[1641861336179,0.15464247,41689.0,41685.0,0.00081977]
[1641861336379,0.16464247,41689.0,41685.0,0.01181977]
[1641861336574,0.16464247,41689.0,41686.0,0.37550886]
[1641861337175,0.16464247,41689.0,41687.0,0.30847158]
[1641861337577,0.15464247,41689.0,41687.0,0.30847158]
[1641861338020,0.15464247,41689.0,41686.0,0.059979]
[1641861338219,0.15464247,41689.0,41685.0,0.00081975]
[1641861338419,0.16264247,41689.0,41687.0,0.011]
[1641861339520,0.16264247,41689.0,41682.0,0.26694856]
[1641861339720,0.15464247,41689.0,41686.0,0.00081974]
[1641861340521,0.16364247,41689.0,41686.0,0.01281974]
[1641861340720,0.16364247,41689.0,41686.0,0.012]
[1641861341328,0.30416126,41688.0,41686.0,0.012]
[1641861341573,0.40540288,41688.0,41686.0,0.012]
[1641861341772,0.10124162,41688.0,41685.0,0.00081975]
[1641861341973,0.10124162,41688.0,41672.0,0.2904]
[1641861341974,0.3176224,41687.0,41672.0,0.2904]
[1641861342172,0.3176224,41687.0,41685.0,0.00081977]
[1641861342173,0.4176224,41687.0,41685.0,0.00081977]
[1641861342374,0.34539716,41686.0,41685.0,0.00081977]
[1641861342576,0.49339716,41686.0,41685.0,0.00081977]
[1641861343173,0.49339716,41686.0,41675.0,0.65607183]
[1641861343376,0.49339716,41686.0,41677.0,0.00327974]
[1641861343377,0.39287021,41682.0,41677.0,0.00327974]
[1641861343574,0.49287021,41682.0,41677.0,0.26642294]
[1641861343978,0.49287021,41682.0,41677.0,0.00327974]
[1641861344475,0.49987021,41682.0,41675.0,0.65607183]
[1641861344675,0.49987021,41682.0,41677.0,0.00081999]
[1641861345075,0.49987021,41682.0,41677.0,0.34466331]
[1641861345520,0.49987021,41682.0,41677.0,0.34384332]
[1641861345719,0.49287021,41682.0,41677.0,0.34466331]
[1641861346524,0.49987021,41682.0,41677.0,0.34466331]
[1641861346721,0.49987021,41682.0,41677.0,0.34384332]
[1641861346921,0.49987021,41682.0,41677.0,0.34466331]
[1641861347723,0.49287021,41682.0,41677.0,0.34466331]
[1641861347922,0.49287021,41682.0,41677.0,0.34384332]
[1641861348122,0.49287021,41682.0,41677.0,0.34466331]
[1641861348523,0.50187021,41682.0,41677.0,0.34466331]
[1641861348724,0.49687021,41682.0,41677.0,0.34466331]
[1641861349179,0.49687021,41682.0,41677.0,0.34384332]
[1641861349473,0.49687021,41682.0,41677.0,0.34466331]
[1641861349674,0.48787021,41682.0,41677.0,0.00081999]
[1641861350479,0.48787021,41682.0,41675.0,0.65607183]
[1641861350480,0.00129079,41681.0,41675.0,0.65607183]
[1641861350674,0.00129079,41681.0,41677.0,0.00081999]
[1641861351679,0.00129079,41681.0,41676.0,0.25883675]
[1641861351877,0.00129079,41681.0,41677.0,0.00082001]
[1641861352477,0.01129079,41681.0,41677.0,0.00082001]
[1641861353723,0.00129079,41681.0,41677.0,0.21812495]
[1641861354024,0.15464247,41689.0,41679.0,0.43955205]
[1641861354025,0.15593775,41689.0,41679.0,0.43955205]
[1641861354226,0.00129528,41689.0,41680.0,0.28195889]
[1641861354423,0.026,41681.0,41680.0,0.28195889]
[1641861354623,0.026,41681.0,41680.0,1.15543389]
[1641861354823,0.026,41681.0,41680.0,1.63192266]
[1641861355024,0.026,41681.0,41680.0,1.13192266]
[1641861355623,0.41617993,41690.0,41680.0,0.89796377]
[1641861355823,0.41617993,41690.0,41683.0,0.33039471]
[1641861356425,0.43417993,41690.0,41683.0,0.33639471]
[1641861356678,0.43417993,41690.0,41684.0,0.00081978]
[1641861357682,0.41617993,41690.0,41683.0,0.33039471]
[1641861357876,0.41617993,41690.0,41685.0,0.00081977]
[1641861358476,0.43517993,41690.0,41685.0,0.00581977]
[1641861358877,0.43517993,41690.0,41685.0,0.005]
[1641861359077,0.43517993,41690.0,41685.0,0.00581975]
[1641861359677,0.60391171,41690.0,41685.0,0.00581975]
[1641861359878,0.58491171,41690.0,41685.0,0.00081975]
[1641861360078,0.58491171,41690.0,41683.0,0.33039471]
[1641861360333,0.58491171,41690.0,41685.0,0.00081975]
[1641861360525,0.60391171,41690.0,41685.0,0.00581975]
[1641861361125,0.60391171,41690.0,41685.0,0.005]
[1641861361326,0.60391171,41690.0,41685.0,0.00581975]
[1641861361724,0.58491171,41690.0,41685.0,0.00081975]
[1641861362329,0.58491171,41690.0,41680.0,0.26029825]
[1641861362330,0.48491171,41690.0,41680.0,0.26029825]
[1641861362528,0.50291171,41690.0,41685.0,0.00581975]
[1641861362728,0.50291171,41690.0,41687.0,0.25794942]
[1641861363329,0.50291171,41690.0,41685.0,0.00581975]
[1641861363530,0.50291171,41690.0,41685.0,0.005]
[1641861363754,0.50291171,41690.0,41686.0,0.00081972]
[1641861363755,0.48491171,41690.0,41686.0,0.00081972]
[1641861364481,0.50291171,41690.0,41686.0,0.00581972]
[1641861364884,0.50291171,41690.0,41686.0,0.005]
[1641861365081,0.50291171,41690.0,41686.0,0.00581974]
[1641861365682,0.50291171,41690.0,41686.0,0.00081974]
[1641861365882,0.48491171,41690.0,41686.0,0.00081974]
[1641861366084,0.16873178,41690.0,41684.0,0.28184557]
[1641861366284,0.16873178,41690.0,41686.0,0.00081974]
[1641861366485,0.18573178,41690.0,41686.0,0.00581974]
[1641861367085,0.18573178,41690.0,41687.0,0.26259338]
[1641861367288,0.017,41690.0,41689.0,1.56198768]
[1641861367488,0.017,41690.0,41689.0,2.04309268]
[1641861367920,0.00085947,41693.0,41689.0,2.04309268]
[1641861368120,0.00085947,41693.0,41691.0,0.29783412]
[1641861368322,0.00085947,41693.0,41692.0,2.04446169]
[1641861368519,0.27967947,41697.0,41692.0,0.69446169]
[1641861368719,0.00085949,41694.0,41692.0,0.421475]
[1641861369718,0.27967947,41697.0,41692.0,0.421475]
[1641861369923,0.00085948,41695.0,41692.0,0.048]
[1641861370319,0.00085948,41695.0,41693.0,0.373475]
[1641861370520,0.00085948,41695.0,41694.0,1.148]
[1641861370721,0.00085948,41695.0,41694.0,1.521475]
[1641861370922,0.27967947,41697.0,41694.0,0.421475]
[1641861371223,0.28053894,41697.0,41695.0,0.373475]
[1641861371422,0.28053894,41697.0,41696.0,0.748]
[1641861371674,0.28053894,41697.0,41696.0,0.048]
[1641861372073,0.27967947,41697.0,41696.0,0.048]
[1641861372478,0.27967947,41697.0,41696.0,0.051]
[1641861373675,0.27967947,41697.0,41696.0,0.048]
[1641861374577,0.27967947,41697.0,41696.0,0.051]
[1641861375522,0.27967947,41697.0,41696.0,0.003]
[1641861375720,0.27967947,41697.0,41695.0,0.24770987]
[1641861376523,0.00085945,41699.0,41696.0,0.34236222]
[1641861376722,0.00085945,41699.0,41696.0,0.46680222]
[1641861376921,0.00129656,41708.0,41697.0,0.373475]
[1641861377124,0.00085944,41700.0,41697.0,0.048]
[1641861377525,0.00085944,41700.0,41699.0,1.53277689]
[1641861377722,0.00085944,41700.0,41699.0,1.90625189]
[1641861377927,0.00085944,41700.0,41699.0,0.373475]
[1641861378124,0.30156822,41702.0,41699.0,0.68823253]
[1641861378323,0.30156822,41702.0,41699.0,0.31475753]
[1641861378324,0.30242764,41702.0,41699.0,0.31475753]
[1641861378524,0.30242764,41702.0,41699.0,0.006]
[1641861379272,0.30156822,41702.0,41699.0,0.006]
[1641861379873,0.30156822,41702.0,41697.0,0.048]
[1641861380473,0.30156822,41702.0,41697.0,0.053]
[1641861380673,0.30242764,41702.0,41697.0,0.053]
[1641861381574,0.30156822,41702.0,41697.0,0.053]
[1641861381775,0.30156822,41702.0,41697.0,0.048]
[1641861381776,0.30242764,41702.0,41697.0,0.048]
[1641861382376,0.30242764,41702.0,41698.0,0.27833992]
[1641861382833,0.30156822,41702.0,41697.0,0.053]
[1641861383030,0.30242763,41702.0,41697.0,0.053]
[1641861383734,0.30242763,41702.0,41697.0,0.39843052]
[1641861383933,0.00085941,41702.0,41697.0,0.39843052]
[1641861384133,0.15856708,41707.0,41698.0,0.373475]
[1641861384332,0.00085942,41702.0,41701.0,0.99968941]
[1641861384533,0.00085942,41702.0,41697.0,0.40443052]
[1641861384738,0.00085942,41702.0,41698.0,0.373475]
[1641861385334,0.25743145,41703.0,41698.0,0.373475]
[1641861385533,0.00085941,41702.0,41700.0,0.25564353]
[1641861386575,0.0008594,41703.0,41700.0,0.26064353]
[1641861386775,0.00423,41701.0,41700.0,0.26064353]
[1641861386974,0.00423,41701.0,41700.0,0.63411853]
[1641861387678,0.00423,41701.0,41700.0,0.9377967]
[1641861387875,0.00423,41701.0,41700.0,0.9327967]
[1641861388076,0.00423,41701.0,41700.0,0.9807967]
[1641861388474,0.00423,41701.0,41700.0,0.9927967]
[1641861388875,0.05996,41719.0,41700.0,0.9927967]
[1641861388876,0.00121707,41716.0,41701.0,1.35]
[1641861389076,0.14820289,41717.0,41702.0,0.47275979]
[1641861389275,0.03598244,41718.0,41707.0,0.059943]
[1641861389476,0.61013173,41721.0,41708.0,0.37846164]
[1641861389876,0.3321714,41715.0,41708.0,0.37846164]
[1641861390077,0.3321714,41715.0,41708.0,0.78722588]
[1641861390338,0.3321714,41715.0,41709.0,0.373475]
[1641861390527,0.3321714,41715.0,41710.0,0.048]
[1641861390726,0.3321714,41715.0,41711.0,0.048]
[1641861390925,0.2957128,41714.0,41711.0,0.048]
[1641861391125,0.00127669,41713.0,41708.0,0.006]
[1641861391327,0.00124034,41712.0,41708.0,0.006]
[1641861391728,0.00124034,41712.0,41695.0,0.94934358]
[1641861391925,0.00124034,41712.0,41699.0,0.36125715]
[1641861392527,0.00124034,41712.0,41700.0,0.29735273]
[1641861392528,0.01324034,41712.0,41700.0,0.29735273]
[1641861392726,0.00043985,41708.0,41700.0,0.29735273]
[1641861392929,0.00043985,41708.0,41701.0,0.373475]
[1641861393126,0.00043985,41708.0,41705.0,0.24160235]
[1641861393326,0.00043985,41708.0,41706.0,0.65051667]
[1641861393527,0.00043985,41708.0,41707.0,1.58648346]
[1641861393729,0.012,41712.0,41707.0,0.65995846]
[1641861393929,0.00085934,41709.0,41708.0,0.373475]
[1641861394176,0.00085934,41709.0,41708.0,0.66786397]
[1641861394377,0.00085934,41709.0,41708.0,1.08028431]
[1641861394576,0.02485934,41709.0,41708.0,0.376475]
[1641861394977,0.024,41709.0,41708.0,0.376475]
[1641861395875,0.00085933,41711.0,41705.0,0.24160235]
[1641861396076,0.3321714,41715.0,41704.0,0.31454922]
[1641861396275,1.76036019,41711.0,41704.0,0.31454922]
[1641861396476,0.00085933,41711.0,41704.0,0.31454922]
[1641861396675,0.00085933,41711.0,41704.0,0.008]
[1641861397075,0.00085933,41711.0,41705.0,0.26458545]
[1641861397275,0.3431714,41715.0,41704.0,0.008]
[1641861397476,0.00085934,41710.0,41704.0,0.008]
[1641861397925,0.00085934,41710.0,41703.0,0.048]
[1641861398328,0.00085934,41710.0,41706.0,0.29212768]
[1641861398626,0.00085935,41709.0,41706.0,0.29212768]
[1641861399831,0.00085934,41710.0,41706.0,0.29212768]
[1641861400027,0.00085934,41710.0,41703.0,0.048]
[1641861400631,0.01185934,41710.0,41703.0,0.057]
[1641861400828,0.011,41710.0,41703.0,0.057]
[1641861401027,0.00085935,41709.0,41703.0,0.41836883]
[1641861401673,0.00085935,41709.0,41704.0,0.373475]
[1641861401875,0.00085935,41709.0,41703.0,0.32036883]
[1641861402075,0.011,41710.0,41703.0,0.32036883]
[1641861402273,0.00085935,41709.0,41703.0,0.32036883]
[1641861402474,0.00085935,41709.0,41703.0,0.31136883]
[1641861402674,0.00085935,41709.0,41703.0,0.32036883]
[1641861403279,0.011,41710.0,41703.0,0.32036883]
[1641861403477,0.00085935,41708.0,41704.0,0.373475]
[1641861403676,0.00085935,41708.0,41705.0,0.27747734]
[1641861403877,0.00085935,41708.0,41706.0,0.373475]
[1641861404378,0.4321714,41715.0,41706.0,0.373475]
[1641861404578,0.014,41708.0,41706.0,0.007]
[1641861405432,0.014,41708.0,41707.0,1.073475]
[1641861405633,0.014,41708.0,41707.0,0.373475]
[1641861405834,0.00085934,41709.0,41707.0,0.373475]
[1641861406632,0.01685934,41709.0,41707.0,0.379475]
[1641861406835,0.016,41709.0,41707.0,0.006]
[1641861408134,0.46814877,41708.0,41707.0,0.006]
[1641861408339,0.016,41709.0,41707.0,0.006]
[1641861408735,0.013,41708.0,41707.0,0.012]
[1641861408935,0.013,41708.0,41707.0,0.006]
[1641861409876,0.00085934,41710.0,41704.0,0.33900736]
[1641861410375,0.6431714,41715.0,41705.0,0.373475]
[1641861410575,0.6431714,41715.0,41704.0,0.38900736]
[1641861410774,0.00085934,41709.0,41704.0,0.39700736]
[1641861410977,0.00085934,41709.0,41705.0,0.373475]
[1641861411574,0.011,41710.0,41705.0,0.373475]
[1641861411776,0.00085934,41709.0,41705.0,0.373475]
[1641861412576,0.01485934,41709.0,41705.0,0.381475]
[1641861412831,0.014,41709.0,41705.0,0.381475]
[1641861413024,0.01485934,41709.0,41705.0,0.381475]
[1641861413227,0.01485934,41709.0,41707.0,0.26005845]
[1641861413426,0.01485934,41709.0,41708.0,2.10975052]
[1641861413629,0.00821975,41723.0,41709.0,1.35]
[1641861413927,0.61835148,41723.0,41710.0,0.048]
[1641861414129,0.61835148,41723.0,41721.0,0.27837534]
[1641861414328,0.89677014,41723.0,41722.0,0.87563888]
[1641861414530,0.61113173,41723.0,41722.0,0.94509554]
[1641861414728,0.001,41723.0,41722.0,0.94509554]
[1641861415128,0.001,41723.0,41722.0,0.34509554]
[1641861416575,0.001,41723.0,41722.0,0.35009554]
[1641861417677,0.001,41723.0,41722.0,0.40009554]
[1641861417877,0.001,41723.0,41722.0,0.39509554]
[1641861418679,0.001,41723.0,41722.0,0.40109554]
[1641861418877,0.001,41723.0,41722.0,0.65109554]
[1641861419177,0.001,41723.0,41722.0,0.77457054]
[1641861419979,0.001,41723.0,41722.0,0.76857054]
[1641861420429,0.001,41723.0,41722.0,0.421475]
[1641861420631,0.001,41723.0,41722.0,0.058]
[1641861420830,0.001,41723.0,41722.0,0.01]
[1641861421431,0.36756886,41723.0,41722.0,0.01]
[1641861422031,0.36756886,41723.0,41715.0,0.2451054]
[1641861422231,0.36756886,41723.0,41712.0,0.048]
[1641861422631,0.00085922,41721.0,41712.0,0.048]
[1641861422931,0.00085922,41721.0,41715.0,0.008]
[1641861423131,0.059953,41720.0,41715.0,0.008]
[1641861424074,0.06081223,41720.0,41708.0,0.2829]
[1641861424275,0.31199651,41715.0,41707.0,0.915]
[1641861424475,0.00085923,41720.0,41708.0,0.373475]
[1641861424675,0.00085923,41720.0,41708.0,0.065]
[1641861424676,0.00985923,41720.0,41708.0,0.065]
[1641861424875,0.009,41720.0,41709.0,0.571475]
[1641861425075,0.00085927,41716.0,41711.0,0.00120109]
[1641861425277,0.00085927,41716.0,41713.0,0.119854]
[1641861425476,0.00085927,41716.0,41714.0,1.55556079]
[1641861425677,0.00085927,41716.0,41715.0,2.05900716]
[1641861425877,0.00085927,41716.0,41715.0,2.10881561]
[1641861426078,0.001,41723.0,41716.0,0.00750871]
[1641861426282,0.001,41723.0,41718.0,0.11984]
[1641861426478,0.001,41723.0,41719.0,0.78576733]
[1641861426679,0.001,41723.0,41722.0,1.68522276]
[1641861426884,0.001,41723.0,41722.0,1.10669776]
[1641861427081,0.001,41723.0,41722.0,1.46515244]
[1641861428730,0.001,41723.0,41722.0,1.47615244]
[1641861429129,0.001,41723.0,41722.0,0.79092968]
[1641861429331,0.001,41723.0,41722.0,0.011]
[1641861430030,0.001,41723.0,41719.0,0.4278756]
[1641861430231,0.001,41723.0,41720.0,0.78382814]
[1641861430430,0.001,41723.0,41721.0,0.28971373]
[1641861430631,0.001,41723.0,41722.0,1.123475]
[1641861430830,0.001,41723.0,41722.0,1.46857214]
[1641861431030,0.001,41723.0,41722.0,0.71857214]
[1641861431230,0.001,41723.0,41722.0,1.01884147]
[1641861431677,0.001,41723.0,41722.0,1.06684147]
[1641861432777,0.001,41723.0,41722.0,1.07284147]
[1641861433778,0.001,41723.0,41722.0,0.77257214]
[1641861433982,0.001,41723.0,41722.0,0.048]
[1641861434381,0.001,41723.0,41715.0,0.31312004]
[1641861434582,0.001,41723.0,41716.0,0.373475]
[1641861434781,0.001,41723.0,41722.0,0.004]
[1641861435437,0.001,41723.0,41722.0,0.377475]
[1641861436033,0.001,41723.0,41722.0,0.71529067]
[1641861436833,0.001,41723.0,41722.0,0.72129067]
[1641861437035,0.001,41723.0,41722.0,0.76929067]
[1641861438036,0.001,41723.0,41722.0,0.76329067]
[1641861438839,0.001,41723.0,41722.0,0.77229067]
[1641861439579,0.001,41723.0,41722.0,0.75765397]
[1641861439980,0.001,41723.0,41722.0,0.471475]
[1641861440378,0.001,41723.0,41722.0,0.76359189]
[1641861440579,0.001,41723.0,41722.0,1.05709344]
[1641861440780,0.001,41723.0,41722.0,1.06409344]
[1641861441581,0.001,41723.0,41722.0,0.478475]
[1641861441786,0.001,41723.0,41722.0,0.428475]
[1641861441982,0.001,41723.0,41715.0,0.31312004]
[1641861442182,0.001,41723.0,41716.0,0.373475]
[1641861442388,0.001,41723.0,41716.0,0.423475]
[1641861442583,0.001,41723.0,41716.0,0.7030009]
[1641861442835,0.001,41723.0,41716.0,0.7120009]
[1641861443031,0.00085921,41722.0,41716.0,0.7120009]
[1641861444029,0.001,41723.0,41716.0,0.7030009]
[1641861444230,0.00085922,41721.0,41716.0,0.7530009]
[1641861444830,0.00085922,41721.0,41716.0,0.7590009]
[1641861445331,0.001,41723.0,41716.0,0.7590009]
[1641861445631,0.00085922,41721.0,41716.0,0.7590009]
[1641861446031,0.00085922,41721.0,41716.0,0.7530009]
[1641861446431,0.001,41723.0,41716.0,0.7530009]
[1641861446677,0.00085922,41721.0,41716.0,0.7600009]
[1641861447578,0.001,41723.0,41716.0,0.7600009]
[1641861447777,0.00085922,41721.0,41716.0,0.7600009]
[1641861447979,0.00085922,41721.0,41716.0,0.7530009]
[1641861448177,0.00085922,41721.0,41717.0,0.05]
[1641861448377,0.00085922,41721.0,41718.0,0.65941113]
[1641861448578,0.00085922,41721.0,41718.0,0.70941113]
[1641861448777,0.001,41723.0,41718.0,0.70941113]
[1641861449179,0.00085921,41722.0,41718.0,0.70941113]
[1641861450079,0.001,41723.0,41718.0,0.70941113]
[1641861450326,0.00085921,41722.0,41718.0,0.70941113]
[1641861450729,0.00085921,41722.0,41718.0,0.71541113]
[1641861451330,0.001,41723.0,41718.0,0.71541113]
[1641861451530,0.00085921,41722.0,41718.0,0.71541113]
[1641861451731,0.13488952,41722.0,41718.0,0.379475]
[1641861451933,0.13488952,41722.0,41718.0,0.006]
[1641861452134,0.13488952,41722.0,41712.0,0.60673857]
[1641861452534,0.13403031,41722.0,41713.0,0.373475]
[1641861452734,0.00085924,41719.0,41716.0,0.33560304]
[1641861453132,0.00085924,41719.0,41712.0,0.456919]
[1641861453332,0.00085924,41719.0,41713.0,0.373475]
[1641861453733,0.13403031,41722.0,41713.0,0.423475]
[1641861453934,0.00085925,41718.0,41713.0,0.423475]
[1641861454181,0.00085925,41718.0,41713.0,0.72694492]
[1641861454581,0.00085925,41718.0,41713.0,0.423475]
[1641861454783,0.00085925,41718.0,41713.0,0.379475]
[1641861454985,0.00122778,41721.0,41713.0,0.006]
[1641861455281,0.00085925,41718.0,41713.0,0.006]
[1641861455882,0.00085925,41718.0,41711.0,0.29735667]
[1641861456082,0.00122778,41721.0,41711.0,0.29735667]
[1641861456284,0.00085925,41718.0,41711.0,0.29735667]
[1641861456483,0.00085925,41718.0,41711.0,0.34735667]
[1641861456683,0.00085925,41718.0,41711.0,0.31035667]
[1641861457285,0.01022778,41721.0,41711.0,0.31035667]
[1641861457286,0.29114123,41715.0,41711.0,0.013]
[1641861457933,0.29114123,41715.0,41707.0,0.047661]
[1641861458128,0.0012397,41714.0,41709.0,0.29855336]
[1641861458728,0.01009899,41714.0,41709.0,0.036]
[1641861459729,0.0092397,41714.0,41709.0,0.036]
[1641861459930,0.0092397,41714.0,41707.0,0.32255344]
[1641861459931,0.00209899,41714.0,41707.0,0.32255344]
[1641861460731,0.01209899,41714.0,41707.0,0.34255344]
[1641861460930,0.0112397,41714.0,41707.0,0.34255344]
[1641861461131,0.0008593,41713.0,41709.0,0.28888647]
[1641861461332,0.0008593,41713.0,41707.0,0.067661]
[1641861461985,0.0592397,41714.0,41707.0,0.067661]
[1641861462185,0.0592397,41714.0,41707.0,0.39700966]
[1641861462388,0.00085931,41712.0,41707.0,0.39700966]
[1641861462587,0.00085931,41712.0,41708.0,0.373475]
[1641861463287,0.008,41714.0,41708.0,0.373475]
[1641861463487,0.00060444,41712.0,41708.0,0.423475]
[1641861463687,0.00060444,41712.0,41709.0,0.69675602]
[1641861463888,0.00060444,41712.0,41710.0,0.373475]
[1641861464089,0.00060444,41712.0,41711.0,0.27514994]
[1641861464388,0.00127538,41720.0,41711.0,0.673475]
[1641861464688,0.002,41712.0,41711.0,0.57750818]
[1641861464887,0.002,41712.0,41711.0,0.95098318]
[1641861466531,0.00060445,41714.0,41711.0,0.95098318]
[1641861466730,0.00060445,41714.0,41712.0,0.373475]
[1641861466931,0.00127538,41720.0,41713.0,0.27479496]
[1641861467132,0.00060446,41715.0,41713.0,0.27479496]
[1641861467729,0.00060446,41715.0,41713.0,0.2730595]
[1641861467930,0.00060446,41715.0,41714.0,0.88593251]
[1641861468133,0.00127538,41720.0,41714.0,0.33593251]
[1641861468331,0.00068446,41716.0,41714.0,0.38593251]
[1641861468631,0.00068446,41716.0,41714.0,0.05]
[1641861468933,0.00068446,41716.0,41710.0,0.40327223]
[1641861469180,0.00427538,41720.0,41710.0,0.40327223]
[1641861469380,0.00068445,41715.0,41710.0,0.40327223]
[1641861469581,0.00068445,41715.0,41711.0,0.373475]
[1641861470481,0.00127538,41720.0,41711.0,0.373475]
[1641861470687,0.00068445,41715.0,41710.0,0.71133548]
[1641861470881,0.00068445,41715.0,41711.0,0.373475]
[1641861471683,0.00127538,41720.0,41711.0,0.373475]
[1641861471884,0.00065907,41715.0,41710.0,0.71133548]
[1641861472082,0.00065907,41715.0,41711.0,0.373475]
[1641861472930,0.00127538,41720.0,41711.0,0.373475]
[1641861473131,0.00065907,41715.0,41712.0,0.3938747]
[1641861473434,0.00065907,41715.0,41713.0,0.71014973]
[1641861473633,0.00065907,41715.0,41714.0,0.9845703]
[1641861473831,0.00065907,41715.0,41714.0,0.6580453]
[1641861474032,0.00127538,41720.0,41714.0,0.6580453]
[1641861474233,0.00065908,41717.0,41714.0,0.2845703]
[1641861474834,0.00265908,41717.0,41713.0,0.05]
[1641861475032,0.00265908,41717.0,41714.0,0.27267536]
[1641861475234,0.002,41717.0,41714.0,0.27267536]
[1641861475534,0.00266711,41717.0,41711.0,0.31053938]
[1641861476133,0.00066711,41717.0,41711.0,0.31053938]
[1641861476434,0.001,41723.0,41713.0,0.059931]
[1641861476683,0.001,41723.0,41719.0,0.42732266]
[1641861476882,0.001,41723.0,41720.0,0.30554455]
[1641861477081,0.001,41723.0,41721.0,0.048]
[1641861477282,0.001,41723.0,41722.0,1.24703497]
[1641861477483,0.001,41723.0,41722.0,1.45469588]
[1641861478787,0.014,41723.0,41722.0,1.46269588]
[1641861479587,0.014,41723.0,41722.0,0.85420804]
[1641861479888,0.014,41723.0,41722.0,0.106]
[1641861480089,0.014,41723.0,41722.0,0.098]
[1641861480090,0.001,41723.0,41722.0,0.098]
[1641861480335,0.001,41723.0,41722.0,0.048]
[1641861480731,0.013,41723.0,41722.0,0.38084044]
[1641861481030,0.013,41723.0,41722.0,0.75431544]
[1641861481433,0.013,41723.0,41722.0,0.381475]
[1641861481833,0.013,41723.0,41722.0,0.68183308]
[1641861482033,0.001,41723.0,41722.0,0.72383308]
[1641861482435,0.001,41723.0,41722.0,0.98964375]
[1641861482735,0.01,41723.0,41722.0,0.99864375]
[1641861483137,0.01,41723.0,41722.0,0.68283308]
[1641861483335,0.01,41723.0,41722.0,0.382475]
[1641861483936,0.001,41723.0,41722.0,0.373475]
[1641861484185,0.001,41723.0,41722.0,0.67855995]
[1641861484383,0.001,41723.0,41722.0,0.62855995]
[1641861484585,0.001,41723.0,41722.0,0.373475]
[1641861484786,0.02,41723.0,41722.0,0.381475]
[1641861485185,0.02,41723.0,41722.0,0.008]
[1641861485984,0.001,41723.0,41722.0,0.698]
[1641861486184,0.001,41723.0,41722.0,0.421475]
[1641861486691,0.001,41723.0,41722.0,0.89885041]
[1641861486886,0.001,41723.0,41722.0,0.90685041]
[1641861486887,0.021,41723.0,41722.0,0.90685041]
[1641861487186,0.021,41723.0,41722.0,1.80813843]
[1641861487386,0.021,41723.0,41722.0,1.52356302]
[1641861487835,0.021,41723.0,41722.0,1.47356302]
[1641861488033,0.001,41723.0,41722.0,0.564275]
[1641861488836,0.001,41723.0,41722.0,0.576275]
[1641861489038,0.001,41723.0,41722.0,0.88564344]
[1641861489335,0.001,41723.0,41722.0,0.433475]
[1641861489536,0.001,41723.0,41722.0,0.06]
[1641861490134,0.001,41723.0,41716.0,0.56577401]
[1641861490335,0.34433377,41723.0,41714.0,0.048]
[1641861490535,0.34433377,41723.0,41713.0,0.60673857]
[1641861490734,0.35233377,41723.0,41716.0,0.012]
[1641861491135,0.249974,41717.0,41716.0,0.012]
[1641861491356,0.25719508,41717.0,41716.0,0.012]
[1641861492088,0.25719508,41717.0,41714.0,0.3000914]
[1641861492089,0.00722108,41717.0,41714.0,0.3000914]
[1641861492690,0.00722108,41717.0,41715.0,0.373475]
[1641861492893,0.01622108,41717.0,41715.0,0.373475]